Cogmind - Beta 13 @@@ ROGUE MODE // 2024.04.26 @ 13:58:36 Player: aRandomVoice Result: Destroyed by Y-54 Guardian with Gatling Laser Performance ------------- Evolutions (3) 1500 Regions Visited (6) 1200 Robots Destroyed (40) 200 Value Destroyed (1548) 1548 Prototype IDs (2) 40 Alien Tech Used (0) 0 Bonus (61) 61 TOTAL SCORE: 4549 Bonus ------- Follower Combat Kills 74 Friendly Fire -13 Cogmind --------- Core Integrity 0/700 Matter 261/300 Energy 100/100 System Corruption 6% Temperature Cool (12) Movement Core (150) Ox2 Location -7/Factory Parts ------- > --- POWER (2) -------- (None) > --- PROPULSION (3) --- (None) > --- UTILITY (5) ------ Improved Targeting Computer Improved Utility Shielding > --- WEAPON (3) ------- Chainsword Spear > --- INVENTORY (5) ---- Light Nuclear Core Ion Cannon Grenade Launcher Peak State ------------ > --- POWER ------------ Light Deuterium Engine Micro Nuclear Core > --- PROPULSION ------- Improved Treads Armored Treads Armored Treads > --- UTILITY ---------- Improved Cooling System Recoil Stabilizer Energy Filter Hardened Heavy Armor Plating > --- WEAPON ----------- Ion Cannon Ion Cannon Chainsword > --- INVENTORY -------- Improved Targeting Computer Particle Cannon Grenade Launcher [Rating: 44] Favorites ----------- Power Light Deuterium Engine Engine Light Deuterium Engine Power Core Light Nuclear Core Propulsion Light Treads Treads Light Treads Utility Improved Cooling System Device Improved Cooling System Storage Small Storage Unit Processor Improved Targeting Computer Protection Hardened Heavy Armor Plating Weapon Ion Cannon Energy Gun Medium Laser Energy Cannon Ion Cannon Ballistic Gun Light Assault Rifle Launcher Grenade Launcher Slashing Weapon Chainsword Piercing Weapon Spear Build | -11 -10 -10 -10 -9 -8 -7 ------- Run | Yrd Mat Min Exi Min Mat Fac Slots Evolved 6 | . . . . . 4 2 Power 1 | . . . . . 1 . Propulsion 1 | . . . . . 1 . Utility 3 | . . . . . 2 1 Weapon 1 | . . . . . . 1 Parts Attached 50 | 5 2 . . 1 23 19 Power 11 | 1 . . . . 5 5 Engine 4 | 1 . . . . 3 . Core 7 | . . . . . 2 5 Reactor . | . . . . . . . Propulsion 8 | 2 . . . . 5 1 Treads 8 | 2 . . . . 5 1 Leg . | . . . . . . . Wheel . | . . . . . . . Hover . | . . . . . . . Flight . | . . . . . . . Utility 14 | . 2 . . 1 7 4 Device 8 | . 1 . . 1 4 2 Storage 1 | . 1 . . . . . Processor 1 | . . . . . . 1 Hackware . | . . . . . . . Protection 4 | . . . . . 3 1 Artifact . | . . . . . . . Weapon 17 | 2 . . . . 6 9 Energy Gun 4 | 1 . . . . . 3 Energy Cannon 6 | . . . . . 4 2 Ballistic Gun 2 | 1 . . . . 1 . Ballistic Cannon . | . . . . . . . Launcher 1 | . . . . . . 1 Special Weapon . | . . . . . . . Impact Weapon . | . . . . . . . Slashing Weapon 3 | . . . . . 1 2 Piercing Weapon 1 | . . . . . . 1 Special Melee Weapon . | . . . . . . . Unidentified Prototypes . | . . . . . . . Parts Lost 20 | . . . . 1 6 13 Power 4 | . . . . . 2 2 Propulsion 5 | . . . . . 2 3 Utility 7 | . . . . 1 1 5 Weapon 4 | . . . . . 1 3 Highest Loss Streak 7 | . . . . 1 3 7 To Critical Strikes . | . . . . . . . Average Slot Usage (%) 83 | . 97 100 100 99 82 76 Engine 7 | . 14 14 14 14 11 2 Core 6 | . . . . . 3 10 Treads 17 | . 28 28 28 28 16 12 Device 16 | . 12 14 14 13 16 17 Storage 5 | . 12 14 14 14 8 . Protection 6 | . . . . . 8 9 Energy Gun 6 | . 14 14 14 14 4 3 Energy Cannon 5 | . . . . . 3 9 Ballistic Gun 5 | . 14 14 14 14 7 . Slashing Weapon 1 | . . . . . . 3 Piercing Weapon 1 | . . . . . . 3 Naked Turns . | . . . . . . . Heaviest Build 52 | 8 15 15 15 15 37 52 Greatest Support 63 | 40 40 40 40 40 63 63 Greatest Overweight (x) 9 | . . . . . 5 9 Average Overweight (x) . | . . . . . . . Largest Inventory Capacity 8 | 5 8 8 8 8 8 5 Average Capacity 6 | 5 7 8 8 8 7 5 Most Carried 8 | 5 8 8 8 8 8 5 Average Carried 4 | 1 3 8 8 7 6 3 Final Capacity 8 | 5 8 8 8 8 5 5 Final Carried 8 | 1 8 8 8 7 3 3 Class Distribution -------------------- 59% | Mutant 40% | Scavenger-Mutant Dominant Class ---------------- Mutant | -10/Materials Mutant | -10/Mines Mutant | -10/Exiles Mutant | -9/Mines Mutant | -8/Materials Scavenger-Mutant | -7/Factory Resources | -11 -10 -10 -10 -9 -8 -7 ----------- Run | Yrd Mat Min Exi Min Mat Fac Matter Collected 898 | 250 43 . . 16 386 203 Remotely . | . . . . . . . Salvage Created 1440 | . 190 . . . 580 670 Parts 77 | . 11 . . . 39 27 Haulers Intercepted . | . . . . . . . Recyclers Shooed . | . . . . . . . Parts Field Recycled . | . . . . . . . Retrieved Matter . | . . . . . . . Parts Self-Destructed . | . . . . . . . Prevented . | . . . . . . . Kills | -11 -10 -10 -10 -9 -8 -7 ------- Run | Yrd Mat Min Exi Min Mat Fac Combat Hostiles Destroyed 34 | . 4 . . . 14 16 Melee 1 | . . . . . . 1 Guns 12 | . 3 . . . 7 2 Cannons 17 | . . . . . 7 10 AOE 4 | . 1 . . . . 3 Classes Destroyed 11 | . 3 . . . 6 2 Worker 3 | . 1 . . . 2 . Tunneler 1 | . 1 . . . . . Watcher 2 | . . . . . 1 1 Swarmer 9 | . . . . . 6 3 Grunt 14 | . 4 . . . 2 8 Duelist 1 | . . . . . . 1 Sentry 4 | . . . . . 2 2 Specialist 2 | . . . . . 2 . Hunter 1 | . . . . . 1 . Programmer 2 | . . . . . . 2 Heavy 1 | . . . . . 1 . Best Kill Streak 6 | . 4 . . . 5 6 Combat Bots Only 6 | . 2 . . . 4 6 Max Kills in Single Turn 3 | . 3 . . . 1 2 Gunslinging . | . . . . . . . Exploded 2 | . 1 . . . . 2 Melee 1 | . . . . . . 1 Uniques/NPCs Destroyed . | . . . . . . . Combat | -11 -10 -10 -10 -9 -8 -7 -------- Run | Yrd Mat Min Exi Min Mat Fac Hostile Shots Fired 424 | . 19 . . 23 101 281 Missed 126 | . 4 . . 7 28 87 Damage Taken 4392 | . 187 . . 160 1386 2659 Core 976 | . 74 . . 28 164 710 Absorbed by Shields 148 | . 68 . . 49 31 . Redirected to Shielding 97 | . . . . . . 97 Core Remaining (%) 76 | 100 . . . 59 70 . Volleys Fired 148 | . 24 . . 8 67 49 Largest 3 | . 2 . . 2 2 3 Hottest 150 | . 70 . . 70 100 150 Shots Fired 250 | . 46 . . 16 99 89 Gun 149 | . 46 . . 16 59 28 Cannon 98 | . . . . . 40 58 Launcher 3 | . . . . . . 3 Special . | . . . . . . . Kinetic 86 | . 24 . . 8 54 . Thermal 161 | . 22 . . 8 45 86 Explosive 3 | . . . . . . 3 Electromagnetic . | . . . . . . . Robot Hit Streak 11 | . 5 . . 6 7 11 Robot Miss Streak 6 | . 6 . . 2 4 3 Penetration Max . | . . . . . . . Secondary Targets 2 | . 1 . . . 1 . Max Gunslinging Chain 1 | . 1 . . . 1 . Shots Hit Robots 160 | . 22 . . 10 61 67 Core Hits 74 | . 8 . . 1 26 39 Critical Kills . | . . . . . . . Critical Parts Destroyed . | . . . . . . . Critical Strikes 4 | . 3 . . . . 1 Burn 3 | . 3 . . . . . Impale 1 | . . . . . . 1 Melee Attacks 7 | . . . . . . 7 Impact . | . . . . . . . Slashing 1 | . . . . . . 1 Piercing 6 | . . . . . . 6 Sneak Attacks . | . . . . . . . Combat Hostiles . | . . . . . . . Follow-up Attacks 1 | . . . . . . 1 Damage Inflicted 3750 | . 415 . . 103 1255 1977 Guns 1593 | . 232 . . 103 655 603 Cannons 1511 | . . . . . 600 911 Explosions 518 | . 183 . . . . 335 Melee 128 | . . . . . . 128 Ramming . | . . . . . . . Kinetic 766 | . 107 . . 41 618 . Thermal 2521 | . 308 . . 62 637 1514 Explosive 335 | . . . . . . 335 Electromagnetic . | . . . . . . . Impact . | . . . . . . . Slashing . | . . . . . . . Piercing 128 | . . . . . . 128 Highest Corruption 6 | . . . . . . 6 Average Corruption 3 | . . . . . . 3 Corruption Purged . | . . . . . . . Corruption Blocked . | . . . . . . . Effects 27 | . . . . . . 27 Message Errors 5 | . . . . . . 5 Matter Fused 7 | . . . . . . 7 Heat Flow Errors 4 | . . . . . . 4 Energy Discharges 5 | . . . . . . 5 Data Loss (minor) 3 | . . . . . . 3 Data Loss (major) 2 | . . . . . . 2 Misfires 1 | . . . . . . 1 Overload Shots . | . . . . . . . Overflow Damage 184 | . 71 . . . 24 89 Projectiles 37 | . . . . . 24 13 Explosions 75 | . 71 . . . . 4 Melee 72 | . . . . . . 72 Knockbacks . | . . . . . . . Impact . | . . . . . . . Kinetic . | . . . . . . . Secondary . | . . . . . . . Self-Inflicted Damage 89 | . 75 . . . . 14 Shots 2 | . 1 . . . . 1 Rammed . | . . . . . . . Targets Rammed . | . . . . . . . Kicked . | . . . . . . . Crushed . | . . . . . . . Highest Temperature 625 | . 177 . . 122 215 625 Average Temperature 88 | . 59 . . 61 83 115 Received Heat Transfer 1214 | . 82 . . 100 228 804 Effects 11 | . . . . . 2 9 Shutdowns 4 | . . . . . . 4 Energy Bleed 2 | . . . . . . 2 Interference 3 | . . . . . 2 1 Short Circuit 1 | . . . . . . 1 Damage (minor) 1 | . . . . . . 1 Siege Activations . | . . . . . . . Robots Corrupted . | . . . . . . . Combat Hostiles . | . . . . . . . Parts Fried . | . . . . . . . Impact Corruptions . | . . . . . . . Robots Melted . | . . . . . . . Combat Hostiles . | . . . . . . . Parts Melted 19 | . 3 . . . 4 12 Heat Transferred 4738 | . 742 . . 185 1110 2701 Parts Sabotaged . | . . . . . . . Parts Stolen . | . . . . . . . Parts Stripped . | . . . . . . . Power Chain Reactions . | . . . . . . . Alert | -11 -10 -10 -10 -9 -8 -7 ------- Run | Yrd Mat Min Exi Min Mat Fac Peak Influence 285 | . 184 . . 58 263 285 Initial 119 | . . . . . 22 119 Average 106 | . 64 . . 38 100 143 Maximum Alert Level 1 | . . . . . 1 1 Low Security (%) 86 | 100 100 100 . 100 77 84 Level 1 13 | . . . . . 22 15 Level 2 . | . . . . . . . Level 3 . | . . . . . . . Level 4 . | . . . . . . . Level 5 . | . . . . . . . High Security . | . . . . . . . Max Security . | . . . . . . . Squads Dispatched 13 | . 3 . . . 3 7 Investigation 2 | . 1 . . . . 1 Extermination 2 | . . . . . . 2 Reinforcement 6 | . 2 . . . 3 1 Assault 2 | . . . . . . 2 Garrison 1 | . . . . . . 1 Intercept . | . . . . . . . Searches Triggered . | . . . . . . . Construction Impeded . | . . . . . . . Haulers Reinforced . | . . . . . . . Active Scanning Responses . | . . . . . . . Cargo Convoy Interrupts . | . . . . . . . Stealth | -11 -10 -10 -10 -9 -8 -7 --------- Run | Yrd Mat Min Exi Min Mat Fac Distress Signals 2 | . 1 . . . 1 . Communications Jammed . | . . . . . . . Distress Signals . | . . . . . . . Times Spotted 51 | . 8 . . 2 21 20 Peak Tracking Total 6 | . 4 . . 2 5 6 Tactical Retreats . | . . . . . . . Traps | -11 -10 -10 -10 -9 -8 -7 ------- Run | Yrd Mat Min Exi Min Mat Fac Traps Triggered 5 | . 1 . . . 1 3 Indirectly . | . . . . . . . Trap Hack Attempts . | . . . . . . . Triggered . | . . . . . . . Disarmed . | . . . . . . . Reprogrammed . | . . . . . . . Reused . | . . . . . . . Traps Extracted . | . . . . . . . Installed . | . . . . . . . Triggered . | . . . . . . . Machines | -11 -10 -10 -10 -9 -8 -7 ---------- Run | Yrd Mat Min Exi Min Mat Fac Machines Disabled 3 | . 1 . . . . 2 Max in Single Turn 1 | . 1 . . . . 1 Garrison Access 3 | . . . . . . 3 Machines Repaired . | . . . . . . . Machines Dismantled . | . . . . . . . Machines Sabotaged . | . . . . . . . Overloaded Fab Kills . | . . . . . . . Hacking | -11 -10 -10 -10 -9 -8 -7 --------- Run | Yrd Mat Min Exi Min Mat Fac Machines Accessed 5 | . 1 . . . 1 3 Terminals 3 | . 1 . . . 1 1 Fabricators . | . . . . . . . Repair Stations 1 | . . . . . . 1 Recycling Units . | . . . . . . . Scanalyzers . | . . . . . . . Garrison Access 1 | . . . . . . 1 Total Hacks 9 | . 1 . . . 1 7 Successful 4 | . 1 . . . . 3 Failed 5 | . . . . . 1 4 Catastrophic 1 | . . . . . . 1 Database Lockouts . | . . . . . . . Manual . | . . . . . . . Terminals 3 | . 1 . . . 1 1 Fabricators . | . . . . . . . Repair Stations 3 | . . . . . . 3 Recycling Units . | . . . . . . . Scanalyzers . | . . . . . . . Garrison Access 3 | . . . . . . 3 Terminal Hacks 2 | . 1 . . . . 1 Prototype ID Bank 1 | . . . . . . 1 Locate Traps 1 | . 1 . . . . . Fabricator Hacks . | . . . . . . . Repair Station Hacks 1 | . . . . . . 1 Scan Component 1 | . . . . . . 1 Recycling Unit Hacks . | . . . . . . . Scanalyzer . | . . . . . . . Garrison Access Hacks 1 | . . . . . . 1 Seal Access 1 | . . . . . . 1 Unauthorized Hacks . | . . . . . . . Terminals . | . . . . . . . Fabricators . | . . . . . . . Repair Stations . | . . . . . . . Recycling Units . | . . . . . . . Scanalyzers . | . . . . . . . Garrison Access . | . . . . . . . Data Cores Recovered . | . . . . . . . Used . | . . . . . . . Hacking Detections 2 | . . . . . . 2 Full Trace Events 1 | . . . . . . 1 Feedback Events 1 | . . . . . . 1 Corruption 1 | . . . . . . 1 Feedback Blocked . | . . . . . . . Robot Schematics Acquired . | . . . . . . . Robots Built . | . . . . . . . Authchips . | . . . . . . . Time . | . . . . . . . Total Robot Build Rating . | . . . . . . . Part Schematics Acquired . | . . . . . . . Parts Built . | . . . . . . . Authchips . | . . . . . . . Time . | . . . . . . . Total Part Build Rating . | . . . . . . . Parts Repaired . | . . . . . . . Time . | . . . . . . . Parts Recycled . | . . . . . . . Recycled Matter . | . . . . . . . Retrieved Matter . | . . . . . . . Retrieved Components . | . . . . . . . Parts Scanalyzed . | . . . . . . . Part Schematics Acquired . | . . . . . . . Parts Damaged . | . . . . . . . Bothacking | -11 -10 -10 -10 -9 -8 -7 ------------ Run | Yrd Mat Min Exi Min Mat Fac Used RIF Installer . | . . . . . . . Robots Hacked . | . . . . . . . Non-combat . | . . . . . . . Combat . | . . . . . . . Robot Hacks Applied . | . . . . . . . Relay Couplers Released 5 | . . . . . . 5 Machine Destruction 2 | . . . . . . 2 Programmers 3 | . . . . . . 3 Fabnet Peak Effective % . | . . . . . . . Robots Rewired . | . . . . . . . Allies Hacked . | . . . . . . . Hacks Repelled . | . . . . . . . Allies | -11 -10 -10 -10 -9 -8 -7 -------- Run | Yrd Mat Min Exi Min Mat Fac Total Allies 3 | . . 3 . . . . Largest Group 3 | . . 3 3 3 3 . Highest-Rated Group 40 | . . 40 40 40 40 . Highest-Rated Ally 16 | . . 16 16 16 16 . Total Orders . | . . . . . . . Ally Attacks 32 | . . . . 12 20 . Total Damage 299 | . . . . 157 142 . Kills 4 | . . . . 2 2 . Allies Corrupted . | . . . . . . . Allies Melted . | . . . . . . . Intel | -11 -10 -10 -10 -9 -8 -7 ------- Run | Yrd Mat Min Exi Min Mat Fac Robot Analysis Total . | . . . . . . . Derelict Logs Recovered 2 | . . 1 . 1 . . Drone Launches . | . . . . . . . Drone Recoveries . | . . . . . . . Exploration | -11 -10 -10 -10 -9 -8 -7 ------------- Run | Yrd Mat Min Exi Min Mat Fac Turns Passed 3411 | 64 423 132 45 274 786 1687 Spaces Moved 1496 | 37 214 83 29 152 356 625 Core 32 | 10 . . . . 9 13 Treads 1464 | 27 214 83 29 152 347 612 Legs . | . . . . . . . Wheels . | . . . . . . . Hover . | . . . . . . . Flight . | . . . . . . . Fastest Speed 50 | 50 160 160 160 160 160 150 Average Speed 191 | 130 160 160 160 160 164 234 Slowest Speed 500 | 160 160 160 160 160 300 500 Overloaded Moves . | . . . . . . . Propulsion Burnouts . | . . . . . . . Robots Hopped . | . . . . . . . Cave-ins Triggered . | . . . . . . . Exploration Rate (%) 26 | 3 45 29 8 48 33 19 Regions Visited 6 Branch Regions 3 Pre-discovered Areas 1 | . . . . 1 . . Known Exits Taken . | . . . . . . . Unknown Exits Taken 6 | 1 1 1 1 1 1 . Scrap Searched 2 | . . . . 2 . . Spaces Dug . | . . . . . . . Terrain Destroyed 22 | . 16 . . . 6 . Melee . | . . . . . . . Projectile 6 | . . . . . 6 . AOE 16 | . 16 . . . . . Terrain Rammed . | . . . . . . . Walls Destroyed . | . . . . . . . Machines Disabled . | . . . . . . . Actions | -11 -10 -10 -10 -9 -8 -7 --------- Run | Yrd Mat Min Exi Min Mat Fac Total 1800 | 53 254 82 28 169 470 744 Wait 48 | 6 6 . . 9 . 27 Move 1490 | 36 213 82 28 151 355 625 Hop . | . . . . . . . Pick Up 39 | 6 9 . . . 13 11 Fast Attach 5 | . . . . . 3 2 Attach 27 | 5 2 . . 1 12 7 Detach . | . . . . . . . Swap 18 | . . . . . 8 10 Drop 19 | . . . . . 12 7 Fire 148 | . 24 . . 8 67 49 Melee 6 | . . . . . . 6 Ram . | . . . . . . . Kick . | . . . . . . . Crush . | . . . . . . . Escape Stasis . | . . . . . . . Rewire . | . . . . . . . Trap . | . . . . . . . Miscellaneous . | . . . . . . . Route ------- -11/Scrapyard -10/Materials -10/Mines -10/Exiles -9/Mines (discovered 2 exits: *Mat x2) -8/Materials (discovered 2 exits: *Fac / Sto) -7/Factory History --------- Turn | Location | Event 7 | -11/Scrapyard | Discovered new exit (range 15) 65 | -11/Scrapyard | Entered Materials 291 | -10/Materials | Discovered new exit (range 8) 301 | -10/Materials | Build established: Mutant 488 | -10/Materials | Entered Mines 490 | -10/Mines | Assisted by bots powering up and referring to "LRC-V3" 605 | -10/Mines | Found a hidden stash of uninstalled traps 613 | -10/Mines | Deemed a non-threat by the Exiles lab entrance 613 | -10/Mines | Discovered new exit (range 5) 620 | -10/Mines | Entered Exiles 620 | -10/Exiles | Accompanied by 3 allies 643 | -10/Exiles | Discovered new exit (range 15) 665 | -10/Exiles | Entered Mines 665 | -9/Mines | Accompanied by 3 allies 705 | -9/Mines | Met a Derelict bent on vengeance 760 | -9/Mines | A weapon hastily lodged in a ceiling crevice suddenly fell to the ground 819 | -9/Mines | Discovered new exit (range 4) 856 | -9/Mines | Discovered new exit (range 10) 899 | -9/Mines | Learned location of Zion (-7) 939 | -9/Mines | Entered Materials 939 | -8/Materials | Accompanied by 3 allies 939 | -8/Materials | Evolved 4 slots: Power x1, Propulsion x1, Utility x2 940 | -8/Materials | Identified exit to Storage 1617 | -8/Materials | Discovered new exit (range 3) 1669 | -8/Materials | Lost 3 parts (1n1u1w) 1725 | -8/Materials | Entered Factory 1725 | -7/Factory | Evolved 2 slots: Utility x1, Weapon x1 1993 | -7/Factory | Build established: Scavenger-Mutant 2306 | -7/Factory | Garrison activated, responded to threat 3297 | -7/Factory | Lost 3 parts (1n1u1w) 3316 | -7/Factory | Build established: Mutant 3392 | -7/Factory | Core integrity fell below 50% 3403 | -7/Factory | Core integrity fell below 20% 3412 | -7/Factory | Destroyed by Y-54 Guardian with Gatling Laser Last Messages --------------- 03391_ Lgt. Treads destroyed. 03391_ P-70 Sage destroyed. 03391_ Hvy. Laser destroyed. Only a single melee weapon may be active at a time, Spear automatically deactivated. (Secondary inactive melee weapons have a chance to conduct follow-up attacks, see the manual.) 03392_ Mic. Nuclear Core destroyed. 03396_ Imp. Heat Sink destroyed. 03397_ Destroyed Gravmag System. 03397_ Chainsword follow-up attack on P-60 Hacker. 03401_ Imp. Cooling System destroyed. 03406_ System corrupted: Component data lost. 03409_ P-60 Hacker suffers critical hit (Impale). 03409_ Destroyed Shock Rifle. 03409_ P-60 Hacker destroyed. 03411_ R-06 Scavenger collects Hpw. Shock Rifle. Map ----- +----------------------------------------------------+ | ?????????????????????????????????????????????????? | | ?????????????????????????????????????????????????? | | ?????????????????????????????????????????????????? | | ?????????????????????????????????????????????????? | | ?????????????????????????????????????????????????? | | ?????????????????????????????????????????????????? | | ?????????????????????????????????????????????????? | | ?????????????????????????????????????????????????? | | ?????????????????????????????????????????????????? | | ?????????????????????????????????????????????????? | | ?????????????????????????????????????????????????? | | ?????????????????????????????????????????????????? | | ?????????????????????????????????????????????????? | | ?????????????????????????????????????????????????? | | ?????????????????????????????????????????????????? | | ?????????????????????????????????????????????????? | | ?????????????????###########?????????????????????? | | ?????????????????? # #?????????????????????? | | ???????????????#### #?????????????????????? | | ???????????????#;; ;;#######???????????????? | | ??????????????## ; #???????????????? | | ?????????######; # #########???????? | | ?????????? ; / ?????? | | ??????????????#; # ####????????????? | | ??????????????#; Y r# #???????????????? | | ??????????????# @%## ##???????????????? | | ??????????????## !!## #????????????????? | | ???????????????#;;;;;;;#;#### #????????????????? | | ???????????????###########??# #????????????????? | | ??????????????????????????### ###??????????????? | | ??????????????? ####### #??????????????? | | ???????????????" ################ | | ???????????????" | | ???????????????" | | ???????????????" ]]] | | ??????????????? ####### ]] "" | | ???????????????" ####### #?????# ]] "" | | ????????????????? ???????#########?????# "" | | ????????????????????????????############# * | | ???????????????????????????+ | | ?????????????????????????????????##^ =###### | | ??????????????????????????????????#^ ^%==%# ???? | | ??????????????????????????????????# ^==%[+ ?????? | | ???????????????????????????####???#^ == #??????? | | ???????????????????????????# ??# #??????? | | ???????????????????????????# ?# #??????? | | ???????????????????????????# """ # !! = #??????? | | ???????????????????????????# """ # !! #??????? | | ???????????????????????????# """ + !! #??????? | | ???????????????????????????# # ##### #??????? | +----------------------------------------------------+ Best States ------------- Heat Dissipation 75 Energy Generation 24 Energy Capacity 300 Matter Stores 300 Matter Capacity 300 Sight Range 16 Terrain Scan Density 10 Base Temperature (-) 100 Armor Coverage 600 Utility Shielding 66 Evasion (%) 50 Targeting Accuracy 6 Recoil Reduction 7 Energy Filtering 30 Item Schematics ----------------- None Robot Schematics ------------------ None Fabricated ------------ Nothing Alien Tech Used ----------------- None Achievements -------------- None Challenges ------------ None Game ------ Seed LinkedHeavySystem Manual? 0 Play Time 00:30:27 Cumulative 9.5 hours Start 2024.04.26 @ 13:30:10 End 2024.04.26 @ 13:58:36 Sessions 1 Manual Loads 0 Difficulty Rogue Special Mode None Game No. 22 Rogue 16 Adventurer 6 Explorer 0 Win Type - Total 0 Types 0/0/0/0/0/0/0/0/0 Lore% 5 Gallery% 17 Achievement% 14 Wizard Run 0 Options --------- Layout 1 ASCII 0 Keyboard 0 Movement Mouse Keybinds 0 Fullscreen 2 Font 24/Crisp Map View 50x35 Zoom Use 0% Tactical HUD 1 Map Filters NONE Filters NONE Steam 1 RUN: 99252315-0e37-47da-85f0-98e35502536a